fUST/lending_fUST_20241217
["ID","MTS","AMOUNT","RATE_DAILY","PERIOD"]
[345608835,1734379832882,-516.680005,0.000265,2]
[345608836,1734379832903,-599.999999,0.00026878,2]
[345608837,1734379832913,-798.01965491,0.00026999,2]
[345608838,1734379832923,-500.0,0.00027373,2]
[345608839,1734379832933,-500.0,0.00027373,2]
[345608840,1734379832943,-176.36,0.00027387,2]
[345608841,1734379832953,-500.0,0.00027397,7]
[345608842,1734379832963,-500.0,0.00027397,7]
[345608843,1734379832972,-500.0,0.00027397,7]
[345608844,1734379832983,-500.0,0.00027397,7]
[345608845,1734379832992,-500.0,0.00027397,7]
[345608846,1734379833002,-500.0,0.00027397,7]
[345608847,1734379833012,-500.0,0.00027397,7]
[345608848,1734379833022,-500.0,0.00027397,7]
[345608849,1734379833033,-500.0,0.00027397,7]
[345608850,1734379833043,-500.0,0.00027397,7]
[345608851,1734379833053,-500.0,0.00027397,7]
[345608852,1734379833063,-500.0,0.00027397,2]
[345608853,1734379833073,-500.0,0.00027397,7]
[345608854,1734379833082,-500.0,0.00027397,7]
[345608855,1734379833092,-500.0,0.00027397,7]
[345608856,1734379833101,-500.0,0.00027397,7]
[345608857,1734379833111,-1361.4,0.00027397,7]
[345608858,1734379833121,-500.0,0.00027397,7]
[345608859,1734379833131,-500.0,0.00027397,7]
[345608860,1734379833140,-500.0,0.00027397,7]
[345608861,1734379833151,-500.0,0.00027397,7]
[345608862,1734379833160,-500.0,0.00027397,7]
[345608863,1734379833170,-500.0,0.00027397,7]
[345608864,1734379833180,-479.26955634,0.00027397,7]
[345608865,1734379833190,-500.0,0.00027397,7]
[345608866,1734379833199,-500.0,0.00027397,7]
[345608867,1734379833209,-500.0,0.00027397,7]
[345608868,1734379833219,-500.0,0.00027397,7]
[345608869,1734379833229,-500.0,0.00027397,7]
[345608870,1734379833239,-500.0,0.00027397,7]
[345608871,1734379833249,-500.0,0.00027397,7]
[345608872,1734379833260,-500.0,0.00027397,7]
[345608873,1734379833273,-500.0,0.00027397,7]
[345608874,1734379833283,-500.0,0.00027397,7]
[345608875,1734379833556,-500.0,0.00027397,7]
[345608876,1734379833566,-168.0,0.00027397,7]
[345608877,1734379833577,-500.0,0.00027397,7]
[345608878,1734379833588,-500.0,0.00027397,7]
[345608879,1734379833598,-500.0,0.00027397,7]
[345608880,1734379833608,-500.0,0.00027397,7]
[345608881,1734379833618,-1362.68,0.00027397,7]
[345608882,1734379833628,-1000.0,0.00027397,2]
[345608883,1734379833638,-930.18,0.00027397,7]
[345608884,1734379833648,-500.0,0.00027397,7]
[345608885,1734379833659,-500.0,0.00027397,7]
[345608886,1734379833669,-170.24005587,0.00027397,7]
[345608887,1734379833679,-500.0,0.00027397,7]
[345608888,1734379833689,-500.0,0.00027397,7]
[345608889,1734379833699,-500.0,0.00027397,7]
[345608890,1734379833708,-500.0,0.00027397,7]
[345608891,1734379833718,-548.15,0.00027397,7]
[345608892,1734379833727,-1159.82,0.00027397,2]
[345608893,1734379833737,-507.31,0.00027397,7]
[345608894,1734379833747,-500.0,0.00027397,7]
[345608895,1734379833756,-500.0,0.00027397,7]
[345608896,1734379833765,-500.0,0.00027397,7]
[345608897,1734379833775,-831.58,0.00027397,7]
[345608898,1734379833784,-500.0,0.00027397,7]
[345608899,1734379833795,-501.44722812,0.00027397,7]
[345608900,1734379833805,-500.0,0.00027397,7]
[345608901,1734379833814,-500.0,0.00027397,7]
[345608902,1734379833823,-716.28,0.00027397,7]
[345608903,1734379833833,-500.0,0.00027397,7]
[345608904,1734379833842,-500.0,0.00027397,7]
[345608905,1734379833852,-500.0,0.00027397,7]
[345608906,1734379833861,-500.0,0.00027397,7]
[345608907,1734379833871,-500.0,0.00027397,7]
[345608908,1734379833880,-500.0,0.00027397,7]
[345608909,1734379833891,-500.0,0.00027397,7]
[345608910,1734379833901,-500.0,0.00027397,7]
[345608911,1734379833911,-500.0,0.00027397,7]
[345608912,1734379833921,-500.0,0.00027397,7]
[345608913,1734379833930,-263.48684067,0.00027397,7]
[345609013,1734379839246,-236.51315933,0.00027397,7]
[345609015,1734379839256,-500.0,0.00027397,7]
[345609017,1734379839271,-500.0,0.00027397,7]
[345609019,1734379839280,-282.6128315,0.00027397,7]
[345609022,1734379839299,-217.3871685,0.00027397,7]
[345609024,1734379839309,-503.52871143,0.00027397,7]
[345609026,1734379839319,-240.09480658,0.00027397,7]
[345609136,1734379840307,-259.90519342,0.00027397,7]
[345609138,1734379840316,-121.57586857,0.00027397,7]
[345609150,1734379840424,-73.38955325,0.00027397,7]
[345609152,1734379840433,-500.0,0.00027397,2]
[345609154,1734379840443,-500.0,0.00027397,7]
[345609156,1734379840452,-500.0,0.00027397,7]
[345609158,1734379840462,-500.0,0.00027397,7]
[345609160,1734379840471,-500.0,0.00027397,7]
[345609162,1734379840481,-500.0,0.00027397,7]
[345609164,1734379840490,-500.0,0.00027397,7]
[345609166,1734379840500,-500.0,0.00027397,7]
[345609168,1734379840509,-500.0,0.00027397,7]
[345609170,1734379840519,-500.0,0.00027397,7]
[345609172,1734379840529,-500.0,0.00027397,7]
[345609174,1734379840539,-500.0,0.00027397,7]
[345609176,1734379840548,-500.0,0.00027397,7]
[345609178,1734379840557,-500.0,0.00027397,7]
[345609180,1734379840567,-500.0,0.00027397,7]
[345609182,1734379840576,-500.0,0.00027397,7]
[345609184,1734379840587,-500.0,0.00027397,7]
[345609186,1734379840596,-500.0,0.00027397,7]
[345609188,1734379840606,-1281.29,0.00027397,7]
[345609191,1734379840616,-500.0,0.00027397,7]
[345609193,1734379840625,-533.27,0.00027397,7]
[345609195,1734379840635,-500.0,0.00027397,7]
[345609197,1734379840644,-9328.35,0.00027397,7]
[345609199,1734379840655,-1051.75,0.00027397,7]
[345609201,1734379840665,-6080.86,0.00027397,7]
[345609203,1734379840674,-663.11,0.00027397,7]
[345609205,1734379840684,-500.0,0.00027397,7]
[345609207,1734379840693,-4474.25,0.00027397,7]
[345609209,1734379840702,-1465.05,0.00027397,7]
[345609211,1734379840711,-500.0,0.00027397,7]
[345609213,1734379840721,-500.0,0.00027397,7]
[345609215,1734379840731,-500.0,0.00027397,7]
[345609217,1734379840740,-500.0,0.00027397,7]
[345609219,1734379840750,-500.0,0.00027397,7]
[345609221,1734379840759,-2124.74,0.00027397,5]
[345609223,1734379840768,-1336.85,0.00027397,7]
[345609225,1734379840778,-500.0,0.00027397,7]
[345609227,1734379840787,-500.0,0.00027397,7]
[345609229,1734379840796,-500.0,0.00027397,7]
[345609231,1734379840805,-500.0,0.00027397,7]
[345609233,1734379840815,-500.0,0.00027397,7]
[345609235,1734379840824,-28712.1,0.00027397,7]
[345609237,1734379840834,-575.38,0.00027397,7]
[345609239,1734379840843,-500.0,0.00027397,7]
[345609241,1734379840852,-500.0,0.00027397,7]
[345609243,1734379840863,-942.46,0.00027397,7]
[345609245,1734379840873,-500.0,0.00027397,7]
[345609247,1734379840883,-500.0,0.00027397,7]
[345609249,1734379840892,-1620.62,0.00027397,7]
[345609251,1734379840906,-321.19024628,0.00027397,7]
[345609644,1734379846388,-178.80975372,0.00027397,7]
[345609645,1734379846399,-500.0,0.00027397,7]
[345609646,1734379846408,-500.0,0.00027397,7]
[345609647,1734379846419,-500.0,0.00027397,7]
[345609648,1734379846429,-500.0,0.00027397,2]
[345609649,1734379846439,-500.0,0.00027397,7]
[345609650,1734379846450,-500.0,0.00027397,7]
[345609651,1734379846460,-1561.39,0.00027397,7]
[345609652,1734379846470,-3178.65,0.00027397,7]
[345609653,1734379846480,-500.0,0.00027397,7]
[345609654,1734379846490,-500.0,0.00027397,7]
[345609655,1734379846500,-500.0,0.00027397,7]
[345609656,1734379846510,-2897.69,0.00027397,7]
[345609657,1734379846520,-802.69,0.00027397,7]
[345609658,1734379846530,-500.0,0.00027397,7]
[345609659,1734379846540,-500.0,0.00027397,7]
[345609660,1734379846550,-1038.17,0.00027397,7]
[345609661,1734379846559,-500.0,0.00027397,7]
[345609662,1734379846569,-1984.0,0.00027397,7]
[345609663,1734379846579,-500.0,0.00027397,7]
[345609664,1734379846589,-659.89,0.00027397,7]
[345609665,1734379846600,-500.0,0.00027397,7]
[345609666,1734379846610,-500.0,0.00027397,7]
[345609667,1734379846620,-1608.74,0.00027397,7]
[345609668,1734379846631,-500.0,0.00027397,7]
[345609669,1734379846641,-1378.43,0.00027397,7]
[345609670,1734379846651,-500.0,0.00027397,7]
[345609671,1734379846662,-500.0,0.00027397,7]
[345609672,1734379846672,-1465.72,0.00027397,7]
[345609673,1734379846682,-1110.6,0.00027397,7]
[345609674,1734379846692,-500.0,0.00027397,7]
[345609675,1734379846702,-504.10299501,0.00027397,7]
[345609676,1734379846712,-876.74,0.00027397,7]
[345609677,1734379846722,-500.0,0.00027397,7]
[345609678,1734379846732,-500.0,0.00027397,7]
[345609679,1734379846742,-501.23827307,0.00027397,7]
[345609680,1734379846751,-500.0,0.00027397,7]
[345609681,1734379846761,-5747.47,0.00027397,7]
[345609682,1734379846770,-500.0,0.00027397,7]
[345609683,1734379846780,-500.0,0.00027397,7]
[345609684,1734379846791,-500.0,0.00027397,7]
[345609685,1734379846800,-500.0,0.00027397,7]
[345609686,1734379846810,-500.0,0.00027397,7]
[345609687,1734379846820,-500.0,0.00027397,7]
[345609688,1734379846830,-519.37895914,0.00027397,7]
[345609689,1734379846840,-500.0,0.00027397,7]
[345609690,1734379846849,-500.0,0.00027397,7]
[345609691,1734379846859,-798.01965491,0.00027505,2]
[345609692,1734379846868,-195.84984155,0.00027571,2]
[345609693,1734379846878,-161.16659657,0.00027571,2]
[345609694,1734379846888,-160.0,0.0002764,3]
[345609695,1734379846897,-500.0,0.00027671,7]
[345609696,1734379846907,-501.53072756,0.00027671,7]
[345609697,1734379846917,-500.0,0.00027671,7]
[345609698,1734379846926,-500.0,0.00027671,7]
[345609699,1734379846935,-500.0,0.00027671,7]
[345609700,1734379846945,-500.0,0.00027671,7]
[345609701,1734379846954,-500.0,0.00027671,7]
[345609702,1734379846963,-500.0,0.00027671,7]
[345609703,1734379846973,-500.0,0.00027671,2]
[345609704,1734379846982,-500.0,0.00027671,7]
[345609705,1734379846992,-500.0,0.00027671,7]
[345609706,1734379847001,-500.0,0.00027671,7]
[345609707,1734379847011,-1361.4,0.00027671,7]
[345609708,1734379847021,-449.00163991,0.00027671,7]
[345609709,1734379847031,-263.02011113,0.00027671,7]
[345609710,1734379847040,-500.0,0.00027671,7]
[345609711,1734379847050,-500.0,0.00027671,7]
[345609712,1734379847060,-500.0,0.00027671,7]
[345609713,1734379847069,-500.0,0.00027671,7]
[345609714,1734379847079,-500.0,0.00027671,7]
[345609715,1734379847088,-500.0,0.00027671,7]
[345609716,1734379847098,-500.0,0.00027671,7]
[345609717,1734379847107,-500.0,0.00027671,7]
[345609718,1734379847117,-418.71657476,0.00027671,7]
[345609719,1734379847127,-500.0,0.00027671,7]
[345609720,1734379847137,-500.0,0.00027671,7]
[345609721,1734379847146,-500.0,0.00027671,7]
[345609722,1734379847156,-500.0,0.00027671,7]
[345609723,1734379847166,-500.0,0.00027671,7]
[345609724,1734379847175,-168.0,0.00027671,7]
[345609725,1734379847185,-500.0,0.00027671,7]
[345609726,1734379847195,-500.0,0.00027671,7]
[345609727,1734379847204,-500.0,0.00027671,7]
[345609728,1734379847215,-458.8455698,0.00027671,7]
[345609729,1734379847224,-1362.68,0.00027671,7]
[345609730,1734379847234,-1000.0,0.00027671,2]
[345609731,1734379847243,-930.18,0.00027671,7]
[345609732,1734379847253,-500.0,0.00027671,7]
[345609733,1734379847264,-500.0,0.00027671,7]
[345609734,1734379847273,-500.0,0.00027671,7]
[345609735,1734379847283,-500.0,0.00027671,7]
[345609736,1734379847293,-500.0,0.00027671,7]
[345609737,1734379847303,-500.0,0.00027671,7]
[345609738,1734379847313,-1159.82,0.00027671,2]
[345609739,1734379847322,-548.15,0.00027671,7]
[345609740,1734379847332,-507.31,0.00027671,7]
[345609741,1734379847344,-500.0,0.00027671,7]
[345609742,1734379847354,-504.83228557,0.00027671,7]
[345609743,1734379847364,-500.0,0.00027671,7]
[345609744,1734379847374,-831.58,0.00027671,7]
[345609745,1734379847383,-500.0,0.00027671,7]
[345609746,1734379847393,-500.0,0.00027671,7]
[345609747,1734379847403,-500.0,0.00027671,7]
[345609748,1734379847413,-716.28,0.00027671,7]
[345609749,1734379847423,-500.0,0.00027671,7]
[345609750,1734379847434,-500.0,0.00027671,7]
[345609751,1734379847445,-500.0,0.00027671,7]
[345609752,1734379847455,-500.0,0.00027671,7]
[345609753,1734379847465,-500.0,0.00027671,7]
[345609754,1734379847475,-500.0,0.00027671,7]
[345609755,1734379847485,-500.0,0.00027671,7]
[345609756,1734379847496,-500.0,0.00027671,7]
[345609757,1734379847505,-500.0,0.00027671,7]
[345609758,1734379847515,-500.0,0.00027671,7]
[345609759,1734379847525,-500.0,0.00027671,7]
[345609760,1734379847536,-500.0,0.00027671,7]
[345609761,1734379847545,-500.0,0.00027671,7]
[345609762,1734379847556,-500.0,0.00027671,7]
[345609763,1734379847566,-500.0,0.00027671,2]
[345609764,1734379847576,-500.0,0.00027671,7]
[345609765,1734379847588,-500.0,0.00027671,7]
[345609766,1734379847598,-500.0,0.00027671,7]
[345609767,1734379847608,-500.0,0.00027671,7]
[345609768,1734379847619,-500.0,0.00027671,7]
[345609769,1734379847630,-500.0,0.00027671,7]
[345609770,1734379847640,-500.0,0.00027671,7]
[345609771,1734379847650,-500.0,0.00027671,7]
[345609772,1734379847660,-500.0,0.00027671,7]
[345609773,1734379847671,-500.0,0.00027671,7]
[345609774,1734379847681,-500.0,0.00027671,7]
[345609775,1734379847690,-500.0,0.00027671,7]
[345609776,1734379847700,-500.0,0.00027671,7]
[345609777,1734379847710,-500.0,0.00027671,7]
[345609778,1734379847719,-500.0,0.00027671,7]
[345609779,1734379847936,-500.0,0.00027671,7]
[345609780,1734379847946,-1281.29,0.00027671,7]
[345609781,1734379847956,-500.0,0.00027671,7]
[345609782,1734379847966,-533.27,0.00027671,7]
[345609783,1734379847978,-500.0,0.00027671,7]
[345609784,1734379847989,-9328.35,0.00027671,7]
[345609785,1734379847999,-1051.75,0.00027671,7]
[345609786,1734379848009,-6080.86,0.00027671,7]
[345609787,1734379848019,-663.11,0.00027671,7]
[345609788,1734379848029,-4474.25,0.00027671,7]
[345609789,1734379848038,-500.00913909,0.00027671,7]
[345609790,1734379848048,-1465.05,0.00027671,7]
[345609791,1734379848058,-500.0,0.00027671,7]
[345609792,1734379848068,-500.0,0.00027671,7]
[345609793,1734379848078,-500.0,0.00027671,7]
[345609794,1734379848087,-500.0,0.00027671,7]
[345609795,1734379848097,-2124.74,0.00027671,5]
[345609796,1734379848107,-1336.85,0.00027671,7]
[345609797,1734379848118,-500.0,0.00027671,7]
[345609798,1734379848127,-500.0,0.00027671,7]
[345609799,1734379848137,-500.0,0.00027671,7]
[345609800,1734379848147,-500.0,0.00027671,7]
[345609801,1734379848157,-500.0,0.00027671,7]
[345609802,1734379848167,-28712.1,0.00027671,7]
[345609803,1734379848176,-575.38,0.00027671,7]
[345609804,1734379848186,-500.0,0.00027671,7]
[345609805,1734379848196,-500.0,0.00027671,7]
[345609806,1734379848206,-942.46,0.00027671,7]
[345609807,1734379848216,-500.0,0.00027671,7]
[345609808,1734379848226,-500.0,0.00027671,7]
[345609809,1734379848235,-1620.62,0.00027671,7]
[345609810,1734379848244,-500.0,0.00027671,7]
[345609811,1734379848254,-500.0,0.00027671,7]
[345609812,1734379848267,-500.0,0.00027671,7]
[345609813,1734379848277,-500.0,0.00027671,7]
[345609814,1734379848287,-500.0,0.00027671,2]
[345609815,1734379848296,-500.0,0.00027671,7]
[345609816,1734379848307,-505.1671724,0.00027671,7]
[345609817,1734379848317,-1561.39,0.00027671,7]
[345609818,1734379848327,-3178.65,0.00027671,7]
[345609819,1734379848337,-500.0,0.00027671,7]
[345609820,1734379848348,-500.0,0.00027671,7]
[345609821,1734379848357,-537.41292189,0.00027671,7]
[345609822,1734379848367,-2897.69,0.00027671,7]
[345609823,1734379848377,-802.69,0.00027671,7]
[345609824,1734379848387,-500.0,0.00027671,7]
[345609825,1734379848396,-500.0,0.00027671,7]
[345609826,1734379848406,-1038.17,0.00027671,7]
[345609827,1734379848431,-500.0,0.00027671,7]
[345609828,1734379848441,-1984.0,0.00027671,7]
[345609829,1734379848451,-500.0,0.00027671,7]
[345609830,1734379848461,-659.89,0.00027671,7]
[345609831,1734379848471,-575.98209972,0.00027671,7]
[345609832,1734379848480,-500.0,0.00027671,7]
[345609833,1734379848490,-1608.74,0.00027671,7]
[345609834,1734379848500,-500.0,0.00027671,7]
[345609835,1734379848510,-1378.43,0.00027671,7]
[345609836,1734379848520,-500.0,0.00027671,7]
[345609837,1734379848530,-500.0,0.00027671,7]
[345609838,1734379848539,-1465.72,0.00027671,7]
[345609839,1734379848549,-1110.6,0.00027671,7]
[345609840,1734379848559,-500.0,0.00027671,7]
[345609841,1734379848568,-876.74,0.00027671,7]
[345609842,1734379848578,-500.0,0.00027671,7]
[345609843,1734379848588,-500.0,0.00027671,7]
[345609844,1734379848598,-5747.47,0.00027671,7]
[345609845,1734379848607,-500.0,0.00027671,7]
[345609846,1734379848617,-500.0,0.00027671,7]
[345609847,1734379848627,-500.0,0.00027671,7]
[345609848,1734379848636,-500.0,0.00027671,7]
[345609849,1734379848646,-500.0,0.00027671,7]
[345609850,1734379848656,-646.01574264,0.00027671,7]
[345609851,1734379848666,-519.72591263,0.00027671,7]
[345609852,1734379848676,-500.0,0.00027673,5]
[345609853,1734379848687,-181.477768,0.00027717,2]
[345609854,1734379848697,-2154.0,0.00027772,2]
[345609855,1734379848707,-533.0,0.00027772,2]
[345609856,1734379848717,-961.99,0.00027772,2]
[345609857,1734379848727,-666.0,0.00027845,2]
[345609858,1734379848736,-420.0,0.00027873,2]
[345609859,1734379848745,-1421.0,0.00027918,15]
[345609860,1734379848755,-233.47374154,0.00027921,5]
[345609861,1734379848764,-1000.0,0.00027921,5]
[345609862,1734379848774,-500.0,0.00027945,7]
[345609863,1734379848783,-500.0,0.00027945,7]
[345609864,1734379848793,-500.0,0.00027945,7]
[345609865,1734379848803,-500.0,0.00027945,7]
[345609866,1734379848812,-500.0,0.00027945,7]
[345609867,1734379848822,-500.0,0.00027945,7]
[345609868,1734379848831,-500.0,0.00027945,2]
[345609869,1734379848841,-500.0,0.00027945,7]
[345609870,1734379848851,-500.0,0.00027945,7]
[345609871,1734379848860,-500.0,0.00027945,7]
[345609872,1734379848870,-1361.4,0.00027945,7]
[345609873,1734379848879,-500.0,0.00027945,7]
[345609874,1734379848889,-500.0,0.00027945,7]
[345609875,1734379848898,-500.0,0.00027945,7]
[345609876,1734379848908,-500.0,0.00027945,7]
[345609877,1734379848918,-500.0,0.00027945,7]
[345609878,1734379848928,-500.0,0.00027945,7]
[345609879,1734379848937,-500.0,0.00027945,7]
[345609880,1734379848947,-618.39730173,0.00027945,7]
[345609881,1734379848956,-500.0,0.00027945,7]
[345609882,1734379848966,-500.0,0.00027945,7]
[345609883,1734379848975,-500.0,0.00027945,7]
[345609884,1734379848984,-500.0,0.00027945,7]
[345609885,1734379848994,-500.0,0.00027945,7]
[345609886,1734379849003,-168.0,0.00027945,7]
[345609887,1734379849012,-500.0,0.00027945,7]
[345609888,1734379849022,-500.0,0.00027945,7]
[345609889,1734379849031,-414.49180667,0.00027945,7]
[345609890,1734379849040,-1362.68,0.00027945,7]
[345609891,1734379849050,-1000.0,0.00027945,2]
[345609892,1734379849060,-930.18,0.00027945,7]
[345609893,1734379849071,-500.0,0.00027945,7]
[345609894,1734379849080,-500.0,0.00027945,7]
[345609895,1734379849091,-500.0,0.00027945,7]
[345609896,1734379849101,-166.24117765,0.00027945,7]
[345609897,1734379849111,-604.81215648,0.00027945,7]
[345609898,1734379849121,-500.0,0.00027945,7]
[345609899,1734379849131,-1159.82,0.00027945,2]
[345609900,1734379849142,-548.15,0.00027945,7]
[345609901,1734379849152,-507.31,0.00027945,7]
[345609902,1734379849162,-500.0,0.00027945,7]
[345609903,1734379849171,-500.0,0.00027945,7]
[345609904,1734379849181,-831.58,0.00027945,7]
[345609905,1734379849191,-500.0,0.00027945,7]
[345609906,1734379849201,-500.0,0.00027945,7]
[345609907,1734379849210,-500.0,0.00027945,7]
[345609908,1734379849220,-716.28,0.00027945,7]
[345609909,1734379849230,-500.0,0.00027945,7]
[345609910,1734379849241,-500.0,0.00027945,7]
[345609911,1734379849250,-500.0,0.00027945,7]
[345609912,1734379849260,-500.0,0.00027945,7]
[345609913,1734379849273,-500.0,0.00027945,7]
[345609914,1734379849283,-500.0,0.00027945,7]
[345609915,1734379849293,-500.0,0.00027945,7]
[345609916,1734379849303,-593.73847109,0.00027945,7]
[345609917,1734379849314,-500.0,0.00027945,7]
[345609918,1734379849324,-500.0,0.00027945,7]
[345609919,1734379849335,-500.0,0.00027945,7]
[345609920,1734379849346,-500.0,0.00027945,7]
[345609921,1734379849356,-500.0,0.00027945,7]
[345609922,1734379849366,-500.0,0.00027945,7]
[345609923,1734379849376,-500.0,0.00027945,2]
[345609924,1734379849386,-500.0,0.00027945,7]
[345609925,1734379849397,-500.0,0.00027945,7]
[345609926,1734379849407,-360.79242233,0.00027945,7]
[345609927,1734379849417,-500.0,0.00027945,7]
[345609928,1734379849428,-500.0,0.00027945,7]
[345609929,1734379849438,-500.0,0.00027945,7]
[345609930,1734379849448,-500.0,0.00027945,7]
[345609931,1734379849458,-474.24610976,0.00027945,7]
[345609932,1734379849468,-500.0,0.00027945,7]
[345609933,1734379849478,-500.0,0.00027945,7]
[345609934,1734379849488,-500.0,0.00027945,7]
[345609935,1734379849498,-500.0,0.00027945,7]
[345609936,1734379849507,-500.0,0.00027945,7]
[345609937,1734379849518,-500.0,0.00027945,7]
[345609938,1734379849527,-500.0,0.00027945,7]
[345609939,1734379849537,-500.0,0.00027945,7]
[345609940,1734379849547,-1281.29,0.00027945,7]
[345609941,1734379849558,-500.0,0.00027945,7]
[345609942,1734379849567,-533.27,0.00027945,7]
[345609943,1734379849577,-500.0,0.00027945,7]
[345609944,1734379849587,-9328.35,0.00027945,7]
[345609945,1734379849600,-1051.75,0.00027945,7]
[345609946,1734379849610,-6080.86,0.00027945,7]
[345609947,1734379849621,-663.11,0.00027945,7]
[345609948,1734379849630,-4474.25,0.00027945,7]
[345609949,1734379849639,-1465.05,0.00027945,7]
[345609950,1734379849649,-500.0,0.00027945,7]
[345609951,1734379849659,-500.0,0.00027945,7]
[345609952,1734379849668,-500.0,0.00027945,7]
[345609953,1734379849679,-2124.74,0.00027945,5]
[345609954,1734379849696,-1336.85,0.00027945,7]
[345609955,1734379849706,-500.0,0.00027945,7]
[345609956,1734379849716,-500.0,0.00027945,7]
[345609957,1734379849726,-261.62976515,0.00027945,7]
[345609958,1734379849739,-500.0,0.00027945,7]
[345609959,1734379849748,-500.0,0.00027945,7]
[345609960,1734379849758,-28712.1,0.00027945,7]
[345609961,1734379849767,-575.38,0.00027945,7]
[345609962,1734379849782,-500.0,0.00027945,7]
[345609963,1734379849791,-500.0,0.00027945,7]
[345609964,1734379849800,-942.46,0.00027945,7]
[345609965,1734379849810,-500.0,0.00027945,7]
[345609966,1734379849819,-500.0,0.00027945,7]
[345609967,1734379849828,-1620.62,0.00027945,7]
[345609968,1734379849838,-500.0,0.00027945,7]
[345609969,1734379849847,-500.0,0.00027945,7]
[345609970,1734379849856,-363.39800288,0.00027945,7]
[345609971,1734379849866,-500.0,0.00027945,7]
[345609972,1734379849876,-500.0,0.00027945,2]
[345609973,1734379849885,-500.0,0.00027945,7]
[345609974,1734379849894,-1561.39,0.00027945,7]
[345609975,1734379849903,-3178.65,0.00027945,7]
[345609976,1734379849913,-500.0,0.00027945,7]
[345609977,1734379849922,-500.0,0.00027945,7]
[345609978,1734379849931,-2897.69,0.00027945,7]
[345609979,1734379849940,-802.69,0.00027945,7]
[345609980,1734379849953,-500.0,0.00027945,7]
[345609981,1734379849964,-500.0,0.00027945,7]
[345609982,1734379849976,-1038.17,0.00027945,7]
[345609983,1734379849989,-500.0,0.00027945,7]
[345609984,1734379850001,-1984.0,0.00027945,7]
[345609985,1734379850013,-500.0,0.00027945,7]
[345609986,1734379850025,-659.89,0.00027945,7]
[345609987,1734379850036,-500.0,0.00027945,7]
[345609988,1734379850047,-1608.74,0.00027945,7]
[345609989,1734379850058,-500.0,0.00027945,7]
[345609990,1734379850069,-1378.43,0.00027945,7]
[345609991,1734379850081,-500.0,0.00027945,7]
[345609992,1734379850092,-500.0,0.00027945,7]
[345609993,1734379850103,-1465.72,0.00027945,7]
[345609994,1734379850114,-1110.6,0.00027945,7]
[345609995,1734379850126,-500.0,0.00027945,7]
[345609996,1734379850137,-876.74,0.00027945,7]
[345609997,1734379850150,-500.0,0.00027945,7]
[345609998,1734379850162,-500.0,0.00027945,7]
[345609999,1734379850173,-5747.47,0.00027945,7]
[345610000,1734379850185,-500.0,0.00027945,7]
[345610001,1734379850214,-500.0,0.00027945,7]
[345610002,1734379850226,-500.0,0.00027945,7]
[345610003,1734379850239,-500.0,0.00027945,7]
[345610004,1734379850251,-500.0,0.00027945,7]